[Event "*** SCC Grand Prix: Titled Tuesday Blitz"]
[Site "Chess.com"]
[Date "2020.08.25"]
[Round "4"]
[White "chessplayer9919"]
[Black "mapleaff"]
[Result "1-0"]
[WhiteElo "2598"]
[BlackElo "2341"]
[TimeControl "180+1"]
[EndTime "10:40:56 PDT"]
[Termination "chessplayer9919 won by resignation"]

1. d4 {[%clk 0:03:00.9]} 1... Nf6 {[%clk 0:02:59.4]} 2. c4 {[%clk 0:03:00.5]}
2... e6 {[%clk 0:02:59.5]} 3. Nf3 {[%clk 0:02:59.5]} 3... d5 {[%clk 0:02:59.9]}
4. g3 {[%clk 0:02:59.6]} 4... Be7 {[%clk 0:02:59.9]} 5. Bg2 {[%clk 0:02:59.8]}
5... O-O {[%clk 0:03:00.5]} 6. O-O {[%clk 0:03:00.1]} 6... dxc4 {[%clk
0:03:00.5]} 7. Qc2 {[%clk 0:03:00.7]} 7... b6 {[%clk 0:03:00.7]} 8. Bg5 {[%clk
0:02:56.7]} 8... Bb7 {[%clk 0:02:56.4]} 9. Qxc4 {[%clk 0:02:54.9]} 9... Nbd7
{[%clk 0:02:55.8]} 10. Nc3 {[%clk 0:02:53.1]} 10... h6 {[%clk 0:02:54.8]} 11.
Bxf6 {[%clk 0:02:51.6]} 11... Nxf6 {[%clk 0:02:55.3]} 12. Ne5 {[%clk 0:02:51.7]}
12... Bxg2 {[%clk 0:02:51.8]} 13. Kxg2 {[%clk 0:02:52.6]} 13... c5 {[%clk
0:02:36.1]} 14. Nc6 {[%clk 0:02:42.8]} 14... Qc7 {[%clk 0:02:34]} 15. Nxe7+
{[%clk 0:02:40]} 15... Qxe7 {[%clk 0:02:34.9]} 16. dxc5 {[%clk 0:02:39.7]} 16...
bxc5 {[%clk 0:02:33.8]} 17. b3 {[%clk 0:02:30.2]} 17... Rfd8 {[%clk 0:02:32.5]}
18. Rfd1 {[%clk 0:02:29.5]} 18... Nd7 {[%clk 0:02:05.5]} 19. Ne4 {[%clk
0:02:24.4]} 19... Rac8 {[%clk 0:01:57.3]} 20. Rac1 {[%clk 0:02:22.7]} 20... Nb6
{[%clk 0:01:49.6]} 21. Qb5 {[%clk 0:02:02.6]} 21... Rxd1 {[%clk 0:01:36.9]} 22.
Rxd1 {[%clk 0:02:01.8]} 22... c4 {[%clk 0:01:28.2]} 23. bxc4 {[%clk 0:01:47.3]}
23... Rxc4 {[%clk 0:01:16.1]} 24. Nd6 {[%clk 0:01:46.8]} 24... Rc7 {[%clk
0:01:05]} 25. Qe5 {[%clk 0:01:38.5]} 25... Rd7 {[%clk 0:00:59.1]} 26. Rd3 {[%clk
0:01:06.5]} 26... Nd5 {[%clk 0:00:40.6]} 27. Ne4 {[%clk 0:00:37.8]} 27... f6
{[%clk 0:00:35.8]} 28. Qb8+ {[%clk 0:00:36.8]} 28... Rd8 {[%clk 0:00:35.5]} 29.
Qb3 {[%clk 0:00:36.4]} 29... Kf7 {[%clk 0:00:32.7]} 30. Nd2 {[%clk 0:00:34.7]}
30... Nc7 {[%clk 0:00:25.2]} 31. Ne4 {[%clk 0:00:26.4]} 31... Rxd3 {[%clk
0:00:20.7]} 32. Qxd3 {[%clk 0:00:27.3]} 32... Nd5 {[%clk 0:00:21]} 33. Nd2
{[%clk 0:00:27.6]} 33... Qb7 {[%clk 0:00:19.7]} 34. e4 {[%clk 0:00:26]} 34...
Ne7 {[%clk 0:00:17.9]} 35. Nb3 {[%clk 0:00:24.8]} 35... Qc7 {[%clk 0:00:13.5]}
36. Qa6 {[%clk 0:00:21.4]} 36... g5 {[%clk 0:00:10.1]} 37. Nd4 {[%clk
0:00:20.4]} 37... Qd7 {[%clk 0:00:08.3]} 38. Nb5 {[%clk 0:00:20.6]} 38... Qd3
{[%clk 0:00:06.8]} 39. Nd6+ {[%clk 0:00:19.9]} 39... Kf8 {[%clk 0:00:04.1]} 40.
Qxd3 {[%clk 0:00:19.6]} 1-0

[Event "*** SCC Grand Prix: Titled Tuesday Blitz"]
[Site "Chess.com"]
[Date "2020.08.25"]
[Round "4"]
[White "Fighter008"]
[Black "Vsevolod_Ovchinnikov"]
[Result "1-0"]
[WhiteElo "2673"]
[BlackElo "2414"]
[TimeControl "180+1"]
[EndTime "10:40:57 PDT"]
[Termination "Fighter008 won on time"]

1. Nf3 {[%clk 0:03:00.9]} 1... Nf6 {[%clk 0:03:00.2]} 2. g3 {[%clk 0:02:59.6]}
2... g6 {[%clk 0:03:00.4]} 3. Bg2 {[%clk 0:02:59.8]} 3... Bg7 {[%clk 0:03:01.1]}
4. O-O {[%clk 0:03:00.2]} 4... d5 {[%clk 0:03:01.6]} 5. d3 {[%clk 0:02:59.7]}
5... O-O {[%clk 0:03:01.3]} 6. Nbd2 {[%clk 0:02:58.9]} 6... b6 {[%clk
0:03:01.7]} 7. e4 {[%clk 0:02:57.6]} 7... dxe4 {[%clk 0:03:00.9]} 8. dxe4 {[%clk
0:02:56.8]} 8... Bb7 {[%clk 0:03:00]} 9. Qe2 {[%clk 0:02:55.7]} 9... Nc6 {[%clk
0:02:42.7]} 10. c3 {[%clk 0:02:54.3]} 10... Qc8 {[%clk 0:02:40.7]} 11. Re1
{[%clk 0:02:43.6]} 11... Rd8 {[%clk 0:02:37.8]} 12. e5 {[%clk 0:02:29.8]} 12...
Nd5 {[%clk 0:02:34.7]} 13. Nc4 {[%clk 0:02:24.5]} 13... e6 {[%clk 0:02:05.6]}
14. a4 {[%clk 0:02:22.3]} 14... a5 {[%clk 0:02:03]} 15. Bg5 {[%clk 0:02:16.4]}
15... Rd7 {[%clk 0:02:03.1]} 16. Rad1 {[%clk 0:02:15.1]} 16... h6 {[%clk
0:02:02.9]} 17. Bc1 {[%clk 0:02:14.3]} 17... Qf8 {[%clk 0:02:01.1]} 18. h4
{[%clk 0:02:13.3]} 18... Rad8 {[%clk 0:02:00.3]} 19. h5 {[%clk 0:02:13]} 19...
g5 {[%clk 0:01:59.6]} 20. Nxg5 {[%clk 0:02:08.6]} 20... hxg5 {[%clk 0:01:58.1]}
21. Bxg5 {[%clk 0:02:09.5]} 21... Re8 {[%clk 0:01:54.8]} 22. Qg4 {[%clk
0:02:09]} 22... f5 {[%clk 0:00:40]} 23. exf6 {[%clk 0:02:07.7]} 23... Nxf6
{[%clk 0:00:40.1]} 24. Bxf6 {[%clk 0:02:03.1]} 24... Rxd1 {[%clk 0:00:40.4]} 25.
Rxd1 {[%clk 0:02:01.6]} 25... Qxf6 {[%clk 0:00:40.3]} 26. Rd7 {[%clk 0:01:58.1]}
26... Nd8 {[%clk 0:00:24.9]} 27. Bxb7 {[%clk 0:01:50.3]} 27... Nxb7 {[%clk
0:00:25.8]} 28. Rxc7 {[%clk 0:01:44.9]} 28... Nc5 {[%clk 0:00:25.8]} 29. Nxb6
{[%clk 0:01:41.1]} 29... Nd3 {[%clk 0:00:24.9]} 30. f4 {[%clk 0:01:38.5]} 30...
Nxb2 {[%clk 0:00:07.8]} 31. Qe2 {[%clk 0:01:06.8]} 31... Qd8 {[%clk 0:00:06.1]}
32. Rb7 {[%clk 0:00:49.2]} 32... Qd1+ {[%clk 0:00:05.4]} 33. Qxd1 {[%clk
0:00:48.6]} 33... Nxd1 {[%clk 0:00:06.3]} 34. c4 {[%clk 0:00:48.4]} 34... Bd4+
{[%clk 0:00:04.1]} 35. Kg2 {[%clk 0:00:46.6]} 35... Ne3+ {[%clk 0:00:03.3]} 36.
Kf3 {[%clk 0:00:46.6]} 36... Bxb6 {[%clk 0:00:03.3]} 37. Rxb6 {[%clk 0:00:47.5]}
37... Nxc4 {[%clk 0:00:04]} 38. Rb7 {[%clk 0:00:47.9]} 38... Rc8 {[%clk
0:00:03.4]} 39. Kg4 {[%clk 0:00:44.8]} 39... Rc5 {[%clk 0:00:03.1]} 40. Kh4
{[%clk 0:00:42.4]} 40... Ne3 {[%clk 0:00:02.7]} 41. g4 {[%clk 0:00:41.4]} 41...
Rc4 {[%clk 0:00:02.9]} 42. Kg5 {[%clk 0:00:40.8]} 42... e5 {[%clk 0:00:01]} 43.
f5 {[%clk 0:00:40]} 1-0

[Event "*** SCC Grand Prix: Titled Tuesday Blitz"]
[Site "Chess.com"]
[Date "2020.08.25"]
[Round "4"]
[White "anskam"]
[Black "Xeniya2005"]
[Result "0-1"]
[WhiteElo "1642"]
[BlackElo "2353"]
[TimeControl "180+1"]
[EndTime "10:40:57 PDT"]
[Termination "Xeniya2005 won by checkmate"]

1. e4 {[%clk 0:03:00.9]} 1... e6 {[%clk 0:02:59.9]} 2. d4 {[%clk 0:02:59.9]}
2... d5 {[%clk 0:03:00.2]} 3. Nc3 {[%clk 0:02:59.2]} 3... Bb4 {[%clk 0:02:59.3]}
4. e5 {[%clk 0:02:58.5]} 4... c5 {[%clk 0:02:57.7]} 5. a3 {[%clk 0:02:58]} 5...
Bxc3+ {[%clk 0:02:57.1]} 6. bxc3 {[%clk 0:02:57.6]} 6... Ne7 {[%clk 0:02:55.9]}
7. f4 {[%clk 0:02:56]} 7... Nbc6 {[%clk 0:02:54.9]} 8. Nf3 {[%clk 0:02:55.5]}
8... b6 {[%clk 0:02:51.8]} 9. Be3 {[%clk 0:02:54.3]} 9... Nf5 {[%clk 0:02:44.7]}
10. Bf2 {[%clk 0:02:52.5]} 10... c4 {[%clk 0:02:41.3]} 11. Be2 {[%clk
0:02:51.8]} 11... Na5 {[%clk 0:02:39.5]} 12. O-O {[%clk 0:02:49.3]} 12... Bd7
{[%clk 0:02:38.8]} 13. g4 {[%clk 0:02:48.2]} 13... Ne7 {[%clk 0:02:37]} 14. Be3
{[%clk 0:02:45.5]} 14... h5 {[%clk 0:02:27.6]} 15. g5 {[%clk 0:02:44.8]} 15...
Nf5 {[%clk 0:02:26]} 16. Qe1 {[%clk 0:02:42.4]} 16... g6 {[%clk 0:02:21.9]} 17.
Bf2 {[%clk 0:02:39.2]} 17... Ba4 {[%clk 0:02:18.8]} 18. Qd2 {[%clk 0:02:35.3]}
18... Qd7 {[%clk 0:02:16.6]} 19. Nh4 {[%clk 0:02:34.3]} 19... Nxh4 {[%clk
0:02:11.5]} 20. Bxh4 {[%clk 0:02:33.4]} 20... O-O {[%clk 0:02:11.5]} 21. Bf2
{[%clk 0:02:18.8]} 21... a6 {[%clk 0:02:08.1]} 22. Rfc1 {[%clk 0:02:15.7]} 22...
b5 {[%clk 0:02:04.2]} 23. Qd1 {[%clk 0:02:11.9]} 23... Nc6 {[%clk 0:02:00.5]}
24. Qd2 {[%clk 0:02:10.6]} 24... Rfb8 {[%clk 0:01:59.3]} 25. Rf1 {[%clk
0:02:09.2]} 25... a5 {[%clk 0:01:59]} 26. Bh4 {[%clk 0:02:07.3]} 26... b4 {[%clk
0:01:57.8]} 27. axb4 {[%clk 0:02:06.1]} 27... axb4 {[%clk 0:01:58.7]} 28. cxb4
{[%clk 0:02:00.6]} 28... Nxb4 {[%clk 0:01:58.2]} 29. Rac1 {[%clk 0:01:56]} 29...
Na2 {[%clk 0:01:49.6]} 30. Ra1 {[%clk 0:01:53]} 30... c3 {[%clk 0:01:45.1]} 31.
Qd1 {[%clk 0:01:47.1]} 31... Rb2 {[%clk 0:01:38.6]} 32. Bd3 {[%clk 0:01:39.9]}
32... Rc8 {[%clk 0:01:33.4]} 33. Rf3 {[%clk 0:01:38]} 33... Nb4 {[%clk
0:01:32.6]} 34. Rh3 {[%clk 0:01:23.8]} 34... Bxc2 {[%clk 0:01:26.7]} 35. Bxc2
{[%clk 0:01:21.2]} 35... Nxc2 {[%clk 0:01:27.6]} 36. Rc1 {[%clk 0:01:15.4]}
36... Qa4 {[%clk 0:01:13.4]} 37. Be1 {[%clk 0:01:02.8]} 37... Qb3 {[%clk
0:01:09.2]} 38. Rxh5 {[%clk 0:00:32.7]} 38... gxh5 {[%clk 0:01:02.7]} 39. Qxh5
{[%clk 0:00:31.5]} 39... Qb7 {[%clk 0:00:56.9]} 40. g6 {[%clk 0:00:30.2]} 40...
fxg6 {[%clk 0:00:55]} 41. Qxg6+ {[%clk 0:00:22]} 41... Qg7 {[%clk 0:00:54]} 42.
Qxg7+ {[%clk 0:00:20.9]} 42... Kxg7 {[%clk 0:00:54.9]} 43. Bxc3 {[%clk
0:00:17.5]} 43... Rxc3 {[%clk 0:00:53.7]} 44. Kh1 {[%clk 0:00:14]} 44... Rcb3
{[%clk 0:00:53.5]} 45. Rg1+ {[%clk 0:00:11.7]} 45... Kf7 {[%clk 0:00:52.3]} 46.
h4 {[%clk 0:00:10.2]} 46... Nxd4 {[%clk 0:00:51.9]} 47. Rg2 {[%clk 0:00:08.2]}
47... Rh3+ {[%clk 0:00:51.2]} 48. Kg1 {[%clk 0:00:07.4]} 48... Nf3+ {[%clk
0:00:51.1]} 49. Kf1 {[%clk 0:00:06.5]} 49... Rh1+ {[%clk 0:00:51.6]} 50. Rg1
{[%clk 0:00:03.9]} 50... Rxg1# {[%clk 0:00:52.5]} 0-1

[Event "*** SCC Grand Prix: Titled Tuesday Blitz"]
[Site "Chess.com"]
[Date "2020.08.25"]
[Round "4"]
[White "Orest_Vovk"]
[Black "tsvet2005"]
[Result "1-0"]
[WhiteElo "2389"]
[BlackElo "2566"]
[TimeControl "180+1"]
[EndTime "10:41:02 PDT"]
[Termination "Orest_Vovk won by resignation"]

1. h3 {[%clk 0:03:00.9]} 1... d5 {[%clk 0:02:58.9]} 2. e4 {[%clk 0:02:58.5]}
2... dxe4 {[%clk 0:02:58.6]} 3. Nc3 {[%clk 0:02:58.6]} 3... Nf6 {[%clk
0:02:58.3]} 4. Qe2 {[%clk 0:02:58.8]} 4... Bf5 {[%clk 0:02:46.7]} 5. Qb5+ {[%clk
0:02:57.7]} 5... Bd7 {[%clk 0:02:47]} 6. Qxb7 {[%clk 0:02:57.7]} 6... Nc6 {[%clk
0:02:47.6]} 7. Bb5 {[%clk 0:02:57.7]} 7... Rb8 {[%clk 0:02:46.5]} 8. Qa6 {[%clk
0:02:57.1]} 8... Rb6 {[%clk 0:02:24.3]} 9. Qa4 {[%clk 0:02:56.2]} 9... a6 {[%clk
0:02:16.9]} 10. Bxc6 {[%clk 0:02:55.7]} 10... Bxc6 {[%clk 0:02:17.8]} 11. Qc4
{[%clk 0:02:55.5]} 11... e6 {[%clk 0:02:16.2]} 12. Nge2 {[%clk 0:02:51.9]} 12...
Bb7 {[%clk 0:02:02.1]} 13. a3 {[%clk 0:02:45.1]} 13... Be7 {[%clk 0:01:59.9]}
14. Ng3 {[%clk 0:02:21.6]} 14... Rd6 {[%clk 0:01:45.3]} 15. O-O {[%clk
0:02:12.1]} 15... O-O {[%clk 0:01:43.5]} 16. Re1 {[%clk 0:01:22.8]} 16... Rd4
{[%clk 0:01:40.7]} 17. Qb3 {[%clk 0:01:21.5]} 17... Ba8 {[%clk 0:01:40.5]} 18.
Nce2 {[%clk 0:01:18.3]} 18... Rd6 {[%clk 0:01:37]} 19. Nc3 {[%clk 0:01:14.6]}
19... Rd4 {[%clk 0:01:28.4]} 20. Nce2 {[%clk 0:01:13.7]} 20... Bd5 {[%clk
0:01:14.3]} 21. Qe3 {[%clk 0:00:56.3]} 21... Rc4 {[%clk 0:01:12.4]} 22. Nc3
{[%clk 0:00:52.6]} 22... Ba8 {[%clk 0:01:01.4]} 23. b3 {[%clk 0:00:35.1]} 23...
Bc5 {[%clk 0:00:56.6]} 24. Qe2 {[%clk 0:00:30.8]} 24... Rd4 {[%clk 0:00:56.1]}
25. Na4 {[%clk 0:00:15.6]} 25... Ba7 {[%clk 0:00:54.4]} 26. Qxa6 {[%clk
0:00:15.5]} 26... Qb8 {[%clk 0:00:47.5]} 27. Re2 {[%clk 0:00:10.7]} 27... Rfd8
{[%clk 0:00:45.2]} 28. Bb2 {[%clk 0:00:07.9]} 28... Rxd2 {[%clk 0:00:42.7]} 29.
Rae1 {[%clk 0:00:07]} 29... Rxe2 {[%clk 0:00:33.5]} 30. Rxe2 {[%clk 0:00:06.6]}
30... e3 {[%clk 0:00:33.8]} 31. fxe3 {[%clk 0:00:04]} 31... Nd5 {[%clk
0:00:33.7]} 32. Nf1 {[%clk 0:00:04]} 32... Bc6 {[%clk 0:00:32.1]} 33. Qxc6
{[%clk 0:00:03.5]} 33... Rd6 {[%clk 0:00:29.5]} 34. Qc4 {[%clk 0:00:03.7]} 34...
Qd8 {[%clk 0:00:27.8]} 35. Qg4 {[%clk 0:00:04.2]} 35... f6 {[%clk 0:00:25.4]}
36. c4 {[%clk 0:00:04.6]} 36... Nxe3 {[%clk 0:00:23.9]} 37. Nxe3 {[%clk
0:00:03.9]} 37... Rd2 {[%clk 0:00:24.8]} 38. Kf2 {[%clk 0:00:02.5]} 38... Bxe3+
{[%clk 0:00:23.9]} 39. Kxe3 {[%clk 0:00:02]} 39... Qd3+ {[%clk 0:00:24.8]} 40.
Kf2 {[%clk 0:00:02.6]} 40... Rd1 {[%clk 0:00:23.6]} 41. Qf3 {[%clk 0:00:02.9]}
41... Qd6 {[%clk 0:00:21.9]} 42. Qe3 {[%clk 0:00:03]} 42... Qh2 {[%clk 0:00:22]}
43. Qxe6+ {[%clk 0:00:02.7]} 1-0

[Event "*** SCC Grand Prix: Titled Tuesday Blitz"]
[Site "Chess.com"]
[Date "2020.08.25"]
[Round "4"]
[White "denispopov"]
[Black "Jovidon91"]
[Result "0-1"]
[WhiteElo "1884"]
[BlackElo "2463"]
[TimeControl "180+1"]
[EndTime "10:41:03 PDT"]
[Termination "Jovidon91 won on time"]

1. e4 {[%clk 0:03:00.9]} 1... c5 {[%clk 0:02:55.9]} 2. Nc3 {[%clk 0:02:59.3]}
2... a6 {[%clk 0:02:51.6]} 3. d4 {[%clk 0:02:58.2]} 3... cxd4 {[%clk 0:02:51.2]}
4. Qxd4 {[%clk 0:02:59.1]} 4... Nc6 {[%clk 0:02:51.5]} 5. Qd2 {[%clk 0:02:58.7]}
5... e6 {[%clk 0:02:51.8]} 6. b3 {[%clk 0:02:51.9]} 6... Qc7 {[%clk 0:02:51.4]}
7. Bb2 {[%clk 0:02:50]} 7... Nf6 {[%clk 0:02:50.4]} 8. a3 {[%clk 0:02:49.2]}
8... b5 {[%clk 0:02:49.7]} 9. O-O-O {[%clk 0:02:46.6]} 9... b4 {[%clk
0:02:49.7]} 10. axb4 {[%clk 0:02:46.2]} 10... Bxb4 {[%clk 0:02:50.6]} 11. f3
{[%clk 0:02:45.7]} 11... O-O {[%clk 0:02:45.7]} 12. Nge2 {[%clk 0:02:45.1]}
12... d5 {[%clk 0:02:45.9]} 13. exd5 {[%clk 0:02:39.1]} 13... exd5 {[%clk
0:02:46]} 14. Qf4 {[%clk 0:02:38.9]} 14... Qa5 {[%clk 0:02:41.8]} 15. Na4 {[%clk
0:02:19.8]} 15... Be7 {[%clk 0:02:32.3]} 16. Qg5 {[%clk 0:02:13.9]} 16... h6
{[%clk 0:02:23.9]} 17. Qg3 {[%clk 0:02:09.1]} 17... Bf5 {[%clk 0:02:22.4]} 18.
Bc3 {[%clk 0:01:45.2]} 18... Qd8 {[%clk 0:02:13.3]} 19. Nd4 {[%clk 0:01:36]}
19... Nxd4 {[%clk 0:02:12.9]} 20. Bxd4 {[%clk 0:01:36.9]} 20... Rc8 {[%clk
0:02:06.5]} 21. Bd3 {[%clk 0:01:36.1]} 21... Nh5 {[%clk 0:01:50]} 22. Qe5 {[%clk
0:01:22.2]} 22... Bxd3 {[%clk 0:01:32.8]} 23. Rxd3 {[%clk 0:01:23.1]} 23... Nf6
{[%clk 0:01:16]} 24. Re1 {[%clk 0:01:18.1]} 24... Re8 {[%clk 0:01:04.7]} 25. Qg3
{[%clk 0:00:58.7]} 25... Nh5 {[%clk 0:01:02.3]} 26. Qf2 {[%clk 0:00:39.9]} 26...
Nf4 {[%clk 0:00:55.8]} 27. Rde3 {[%clk 0:00:38.6]} 27... Ne6 {[%clk 0:00:52.7]}
28. Bb6 {[%clk 0:00:36.8]} 28... Qd7 {[%clk 0:00:47]} 29. Rd3 {[%clk 0:00:30.2]}
29... Qb5 {[%clk 0:00:40.2]} 30. Nc3 {[%clk 0:00:22.6]} 30... Rxc3 {[%clk
0:00:24.1]} 31. Rxc3 {[%clk 0:00:21]} 31... Bb4 {[%clk 0:00:23.8]} 32. Bd4
{[%clk 0:00:12.6]} 32... Qa5 {[%clk 0:00:19.6]} 33. Qe3 {[%clk 0:00:07]} 33...
Re7 {[%clk 0:00:14.5]} 34. Rc8+ {[%clk 0:00:04.9]} 34... Nf8 {[%clk 0:00:10.2]}
35. Qxe7 {[%clk 0:00:02.8]} 35... Bxe7 {[%clk 0:00:11.1]} 36. Rxe7 {[%clk
0:00:03]} 36... Qa3+ {[%clk 0:00:11.6]} 0-1

[Event "*** SCC Grand Prix: Titled Tuesday Blitz"]
[Site "Chess.com"]
[Date "2020.08.25"]
[Round "4"]
[White "GameOverBro"]
[Black "GMJustin"]
[Result "1-0"]
[WhiteElo "2441"]
[BlackElo "2241"]
[TimeControl "180+1"]
[EndTime "10:41:04 PDT"]
[Termination "GameOverBro won on time"]

1. e4 {[%clk 0:03:00.9]} 1... e5 {[%clk 0:02:58.9]} 2. Nf3 {[%clk 0:03:00.6]}
2... Nc6 {[%clk 0:02:58.6]} 3. Bb5 {[%clk 0:03:00.7]} 3... a6 {[%clk 0:02:58.8]}
4. Ba4 {[%clk 0:03:00.9]} 4... Nf6 {[%clk 0:02:58.7]} 5. d4 {[%clk 0:03:01.1]}
5... exd4 {[%clk 0:02:55.2]} 6. O-O {[%clk 0:03:01]} 6... Be7 {[%clk 0:02:54.7]}
7. e5 {[%clk 0:03:00.9]} 7... Ne4 {[%clk 0:02:51.3]} 8. Nxd4 {[%clk 0:03:00.8]}
8... O-O {[%clk 0:02:50.9]} 9. Bf4 {[%clk 0:03:00.3]} 9... Nc5 {[%clk
0:02:26.2]} 10. Bb3 {[%clk 0:02:59.2]} 10... Nxd4 {[%clk 0:02:19.8]} 11. Qxd4
{[%clk 0:02:58.6]} 11... Ne6 {[%clk 0:02:12.4]} 12. Qd2 {[%clk 0:02:58.5]} 12...
Nxf4 {[%clk 0:01:58.2]} 13. Qxf4 {[%clk 0:02:59.4]} 13... d6 {[%clk 0:01:48.1]}
14. Nc3 {[%clk 0:02:59.4]} 14... dxe5 {[%clk 0:01:36]} 15. Qxe5 {[%clk
0:03:00.3]} 15... Bf6 {[%clk 0:01:35.9]} 16. Qg3 {[%clk 0:02:50.9]} 16... c6
{[%clk 0:01:28.8]} 17. Rad1 {[%clk 0:02:47.9]} 17... Qa5 {[%clk 0:01:26.9]} 18.
Rfe1 {[%clk 0:02:33.8]} 18... Bf5 {[%clk 0:01:20.4]} 19. Re3 {[%clk 0:02:24.9]}
19... Rad8 {[%clk 0:01:08.8]} 20. Rde1 {[%clk 0:02:22]} 20... h5 {[%clk
0:00:59.1]} 21. Rf3 {[%clk 0:02:08.4]} 21... Kh7 {[%clk 0:00:33.6]} 22. Qf4
{[%clk 0:02:01.5]} 22... Bg6 {[%clk 0:00:29.4]} 23. h4 {[%clk 0:01:56]} 23...
Rd4 {[%clk 0:00:26.7]} 24. Qe3 {[%clk 0:01:33]} 24... Rxh4 {[%clk 0:00:24.4]}
25. Rxf6 {[%clk 0:01:25.5]} 25... gxf6 {[%clk 0:00:23.8]} 26. Qe7 {[%clk
0:01:26]} 26... Kg7 {[%clk 0:00:20.8]} 27. Qxb7 {[%clk 0:01:22.8]} 27... Qg5
{[%clk 0:00:05.1]} 28. Qxc6 {[%clk 0:01:19.9]} 28... Rg4 {[%clk 0:00:04.6]} 29.
Bd5 {[%clk 0:01:12.4]} 29... h4 {[%clk 0:00:04.6]} 30. Bf3 {[%clk 0:01:10.8]}
30... Rf4 {[%clk 0:00:04]} 31. Kh2 {[%clk 0:01:07.4]} 31... h3 {[%clk
0:00:03.5]} 32. g3 {[%clk 0:01:07.9]} 32... Rd4 {[%clk 0:00:03.3]} 33. Re2
{[%clk 0:00:55.1]} 33... Rd2 {[%clk 0:00:03.1]} 34. Ne4 {[%clk 0:00:48.8]} 34...
Bxe4 {[%clk 0:00:03]} 35. Qxe4 {[%clk 0:00:49.7]} 35... Rxe2 {[%clk 0:00:03]}
36. Bxe2 {[%clk 0:00:48.9]} 36... Rd8 {[%clk 0:00:02.8]} 37. Bd3 {[%clk
0:00:49.1]} 37... Rd6 {[%clk 0:00:02.1]} 38. b4 {[%clk 0:00:46.4]} 38... Qe5
{[%clk 0:00:01.5]} 39. Qh7+ {[%clk 0:00:45.2]} 39... Kf8 {[%clk 0:00:01.9]} 40.
Qxh3 {[%clk 0:00:45.6]} 40... Ke7 {[%clk 0:00:02.3]} 41. Qc8 {[%clk 0:00:42]}
41... Qd4 {[%clk 0:00:02.4]} 42. Qc7+ {[%clk 0:00:41.1]} 42... Rd7 {[%clk
0:00:02.7]} 43. Qc5+ {[%clk 0:00:39.6]} 43... Qxc5 {[%clk 0:00:03]} 44. bxc5
{[%clk 0:00:40.5]} 44... Rc7 {[%clk 0:00:03.5]} 45. Bxa6 {[%clk 0:00:40.2]}
45... Rxc5 {[%clk 0:00:03.8]} 46. c4 {[%clk 0:00:37.5]} 46... Ra5 {[%clk
0:00:03.4]} 47. Bb7 {[%clk 0:00:36.3]} 47... Rxa2 {[%clk 0:00:03.8]} 48. Kg2
{[%clk 0:00:36.5]} 48... Rc2 {[%clk 0:00:03.7]} 49. Bd5 {[%clk 0:00:36.9]} 49...
f5 {[%clk 0:00:03.8]} 50. Kf3 {[%clk 0:00:37.3]} 50... f6 {[%clk 0:00:03.9]} 51.
Ke3 {[%clk 0:00:37.7]} 51... Kd6 {[%clk 0:00:04]} 52. f3 {[%clk 0:00:37.8]}
52... Ke5 {[%clk 0:00:03.9]} 53. Kd3 {[%clk 0:00:35.9]} 53... Rg2 {[%clk
0:00:03.3]} 54. f4+ {[%clk 0:00:35.5]} 54... Kd6 {[%clk 0:00:02.8]} 55. Bxg2
{[%clk 0:00:36.4]} 1-0

[Event "*** SCC Grand Prix: Titled Tuesday Blitz"]
[Site "Chess.com"]
[Date "2020.08.25"]
[Round "4"]
[White "IMAghasiyevKamal"]
[Black "anon102030"]
[Result "0-1"]
[WhiteElo "2427"]
[BlackElo "2728"]
[TimeControl "180+1"]
[EndTime "10:41:05 PDT"]
[Termination "anon102030 won on time"]

1. d4 {[%clk 0:03:00]} 1... Nf6 {[%clk 0:02:57.8]} 2. c4 {[%clk 0:02:58.7]} 2...
e5 {[%clk 0:02:57.8]} 3. dxe5 {[%clk 0:02:57.7]} 3... Ng4 {[%clk 0:02:58.1]} 4.
Nf3 {[%clk 0:02:55.9]} 4... Nc6 {[%clk 0:02:54.1]} 5. e3 {[%clk 0:02:54.5]} 5...
Ngxe5 {[%clk 0:02:51.8]} 6. Be2 {[%clk 0:02:53.7]} 6... g6 {[%clk 0:02:50.4]} 7.
Bd2 {[%clk 0:02:47.7]} 7... Bg7 {[%clk 0:02:50]} 8. Bc3 {[%clk 0:02:46.2]} 8...
O-O {[%clk 0:02:50.1]} 9. O-O {[%clk 0:02:44.4]} 9... d6 {[%clk 0:02:50.3]} 10.
Nxe5 {[%clk 0:02:41]} 10... Nxe5 {[%clk 0:02:45.6]} 11. Nd2 {[%clk 0:02:39.6]}
11... b6 {[%clk 0:02:40.3]} 12. f4 {[%clk 0:02:30.8]} 12... Nd7 {[%clk
0:02:36.1]} 13. Bxg7 {[%clk 0:02:29.8]} 13... Kxg7 {[%clk 0:02:37]} 14. Bf3
{[%clk 0:02:20.4]} 14... Rb8 {[%clk 0:02:37.1]} 15. Ne4 {[%clk 0:02:20.1]} 15...
Nf6 {[%clk 0:02:29.5]} 16. Qd4 {[%clk 0:02:15]} 16... Bf5 {[%clk 0:02:28.3]} 17.
Ng3 {[%clk 0:02:10.6]} 17... Bd7 {[%clk 0:02:18.4]} 18. e4 {[%clk 0:02:03.4]}
18... Kg8 {[%clk 0:02:14.6]} 19. Rad1 {[%clk 0:02:01]} 19... Bg4 {[%clk
0:02:08.6]} 20. f5 {[%clk 0:01:28.4]} 20... Bxf3 {[%clk 0:02:04.2]} 21. Rxf3
{[%clk 0:01:27]} 21... Qe7 {[%clk 0:02:00.3]} 22. Rdf1 {[%clk 0:01:21.9]} 22...
Ng4 {[%clk 0:01:58.9]} 23. Rf4 {[%clk 0:01:00]} 23... Ne5 {[%clk 0:01:35.4]} 24.
b3 {[%clk 0:00:50.2]} 24... f6 {[%clk 0:01:27]} 25. fxg6 {[%clk 0:00:49.1]}
25... hxg6 {[%clk 0:01:25.7]} 26. Ne2 {[%clk 0:00:48.7]} 26... Rbe8 {[%clk
0:01:25.2]} 27. Nc3 {[%clk 0:00:47.4]} 27... c6 {[%clk 0:01:21.8]} 28. Rd1
{[%clk 0:00:46.9]} 28... Rd8 {[%clk 0:01:20.5]} 29. Qe3 {[%clk 0:00:41.8]} 29...
Kg7 {[%clk 0:01:19.6]} 30. Rdf1 {[%clk 0:00:38.6]} 30... Rde8 {[%clk 0:01:14.4]}
31. Ne2 {[%clk 0:00:31]} 31... g5 {[%clk 0:00:57.3]} 32. Rf5 {[%clk 0:00:24.5]}
32... Ng4 {[%clk 0:00:56.4]} 33. Qc3 {[%clk 0:00:13.1]} 33... Qxe4 {[%clk
0:00:45.4]} 34. Rxg5+ {[%clk 0:00:12.7]} 34... Kh6 {[%clk 0:00:45.2]} 35. Rgf5
{[%clk 0:00:05.1]} 35... Qxe2 {[%clk 0:00:36.7]} 36. Qh3+ {[%clk 0:00:04.6]}
36... Kg7 {[%clk 0:00:37.3]} 37. R5f3 {[%clk 0:00:04.8]} 37... Re4 {[%clk
0:00:33.2]} 38. Qh4 {[%clk 0:00:02.1]} 38... Qd2 {[%clk 0:00:24.2]} 39. Kh1
{[%clk 0:00:01.3]} 39... Qh6 {[%clk 0:00:19.7]} 0-1